fUST/lending_fUST_20250725
["ID","MTS","AMOUNT","RATE_DAILY","PERIOD"]
[374806702,1753450239972,-771.17,0.00019452,2]
[374806704,1753450239983,-460.0,0.00019452,2]
[374806706,1753450239994,-2610.13,0.00019452,2]
[374806724,1753450240155,-460.0,0.00019452,2]
[374806727,1753450240177,-460.0,0.00019452,2]
[374806729,1753450240189,-1862.29,0.00019452,2]
[374806731,1753450240199,-460.0,0.00019452,2]
[374806733,1753450240210,-460.0,0.00019452,2]
[374806735,1753450240220,-1081.62,0.00019452,2]
[374806738,1753450240230,-460.0,0.00019452,2]
[374806741,1753450240242,-460.0,0.00019452,2]
[374806744,1753450240252,-460.0,0.00019452,2]
[374806747,1753450240261,-460.0,0.00019452,2]
[374806750,1753450240270,-220.0,0.00019452,2]
[374806753,1753450240280,-1187.83,0.00019452,2]
[374806757,1753450240290,-460.0,0.00019452,2]
[374806761,1753450240299,-646.9,0.00019452,2]
[374806764,1753450240308,-460.0,0.00019452,2]
[374806767,1753450240318,-460.0,0.00019452,2]
[374806770,1753450240327,-460.0,0.00019452,2]
[374806772,1753450240337,-460.0,0.00019452,2]
[374806775,1753450240346,-460.0,0.00019452,2]
[374806779,1753450240356,-1175.37,0.00019452,2]
[374806781,1753450240365,-460.0,0.00019452,2]
[374806784,1753450240375,-460.0,0.00019452,2]
[374806789,1753450240385,-460.0,0.00019452,2]
[374806791,1753450240395,-460.0,0.00019452,2]
[374806794,1753450240405,-460.0,0.00019452,2]
[374806798,1753450240414,-460.0,0.00019452,2]
[374806801,1753450240424,-460.0,0.00019452,2]
[374806803,1753450240434,-460.0,0.00019452,2]
[374806806,1753450240443,-958.95,0.00019452,2]
[374806809,1753450240452,-460.0,0.00019452,2]
[374806812,1753450240462,-460.0,0.00019452,2]
[374806815,1753450240471,-460.0,0.00019452,2]
[374806818,1753450240481,-460.0,0.00019452,2]
[374806822,1753450240496,-460.0,0.00019452,2]
[374806825,1753450240506,-460.0,0.00019452,2]
[374806829,1753450240515,-460.0,0.00019452,2]
[374806832,1753450240525,-460.0,0.00019452,2]
[374806835,1753450240535,-3295.55,0.00019452,2]
[374806837,1753450240544,-460.0,0.00019452,2]
[374806840,1753450240554,-460.0,0.00019452,2]
[374806843,1753450240563,-460.0,0.00019452,2]
[374806846,1753450240573,-460.0,0.00019726,2]
[374806849,1753450240583,-460.0,0.00019726,2]
[374806851,1753450240593,-460.0,0.00019726,2]
[374806853,1753450240605,-460.0,0.00019726,2]
[374806855,1753450240614,-740.99,0.00019726,2]
[374806857,1753450240624,-460.0,0.00019726,2]
[374806859,1753450240634,-460.0,0.00019726,2]
[374806861,1753450240643,-504.1,0.00019726,2]
[374806863,1753450240652,-828.39,0.00019726,2]
[374806865,1753450240662,-460.0,0.00019726,2]
[374806867,1753450240672,-460.0,0.00019726,2]
[374806869,1753450240682,-868.0,0.00019726,2]
[374806871,1753450240691,-460.0,0.00019726,2]
[374806873,1753450240701,-460.0,0.00019726,2]
[374806875,1753450240711,-771.17,0.00019726,2]
[374806877,1753450240721,-460.0,0.00019726,2]
[374806879,1753450240731,-2610.13,0.00019726,2]
[374806881,1753450240745,-460.0,0.00019726,2]
[374806883,1753450240755,-1862.29,0.00019726,2]
[374806885,1753450240764,-460.0,0.00019726,2]
[374806887,1753450240774,-460.0,0.00019726,2]
[374806889,1753450240784,-1081.62,0.00019726,2]
[374806890,1753450240794,-460.0,0.00019726,2]
[374806892,1753450240804,-460.0,0.00019726,2]
[374806894,1753450240813,-460.0,0.00019726,2]
[374806896,1753450240823,-1187.83,0.00019726,2]
[374806899,1753450240836,-460.0,0.00019726,2]
[374806902,1753450240845,-646.9,0.00019726,2]
[374806906,1753450240855,-460.0,0.00019726,2]
[374806908,1753450240864,-460.0,0.00019726,2]
[374806912,1753450240874,-460.0,0.00019726,2]
[374806915,1753450240884,-460.0,0.00019726,2]
[374806917,1753450240893,-460.0,0.00019726,2]
[374806920,1753450240902,-1175.37,0.00019726,2]
[374806924,1753450240912,-460.0,0.00019726,2]
[374806927,1753450240921,-460.0,0.00019726,2]
[374806930,1753450240932,-460.0,0.00019726,2]
[374806933,1753450240941,-460.0,0.00019726,2]
[374806935,1753450240951,-482.28,0.00019726,2]
[374806939,1753450240960,-958.95,0.00019726,2]
[374806942,1753450240970,-359.72951454,0.00019726,2]
[374806944,1753450240980,-460.0,0.00019726,2]
[374806947,1753450240991,-409.5,0.00019726,2]
[374806950,1753450241001,-460.0,0.00019726,2]
[374806953,1753450241011,-460.0,0.00019726,2]
[374806957,1753450241020,-248.4666521,0.00019726,2]
[374806959,1753450241030,-460.0,0.00019726,2]
[374806962,1753450241040,-3295.55,0.00019726,2]
[374806964,1753450241049,-460.0,0.00019726,2]
[374806969,1753450241059,-460.0,0.00019726,2]
[374806972,1753450241068,-509.00930952,0.00019872,2]
[374806975,1753450241078,-500.0,0.00019873,2]
[374806978,1753450241088,-500.0,0.00019873,2]
[374806981,1753450241097,-500.0,0.00019873,2]
[374806985,1753450241107,-500.0,0.00019873,2]
[374806987,1753450241117,-2889.52293756,0.00019883,2]
[374806991,1753450241126,-165485.04841881,0.000199,2]
[374806994,1753450241136,-460.0,0.0002,2]
[374806998,1753450241145,-460.0,0.0002,2]
[374807000,1753450241154,-497.6,0.0002,2]
[374807004,1753450241164,-740.99,0.0002,2]
[374807007,1753450241180,-460.0,0.0002,2]
[374807010,1753450241189,-460.0,0.0002,2]
[374807012,1753450241199,-504.1,0.0002,2]
[374807015,1753450241210,-828.39,0.0002,2]
[374807018,1753450241220,-460.0,0.0002,2]
[374807022,1753450241229,-460.0,0.0002,2]
[374807025,1753450241241,-868.0,0.0002,2]
[374807027,1753450241253,-460.0,0.0002,2]
[374807031,1753450241264,-460.0,0.0002,2]
[374807034,1753450241274,-771.17,0.0002,2]
[374807037,1753450241283,-460.0,0.0002,2]
[374807040,1753450241293,-2610.13,0.0002,2]
[374807043,1753450241302,-460.0,0.0002,2]
[374807046,1753450241311,-1862.29,0.0002,2]
[374807049,1753450241321,-460.0,0.0002,2]
[374807052,1753450241330,-1081.62,0.0002,2]
[374807055,1753450241340,-460.0,0.0002,2]
[374807058,1753450241349,-460.0,0.0002,2]
[374807061,1753450241359,-191.08,0.0002,2]
[374807064,1753450241368,-1187.83,0.0002,2]
[374807067,1753450241378,-424.0,0.0002,2]
[374807070,1753450241387,-646.9,0.0002,2]
[374807073,1753450241396,-7214.73084693,0.0002,10]
[374807076,1753450241406,-1175.37,0.0002,2]
[374807079,1753450241416,-460.0,0.0002,2]
[374807083,1753450241426,-460.0,0.0002,2]
[374807086,1753450241436,-958.95,0.0002,2]
[374807089,1753450241445,-460.0,0.0002,2]
[374807092,1753450241454,-460.0,0.0002,2]
[374807095,1753450241463,-460.0,0.0002,2]
[374807098,1753450241477,-460.0,0.0002,2]
[374807102,1753450241491,-3295.55,0.0002,2]
[374807104,1753450241503,-460.0,0.0002,2]
[374807106,1753450241516,-460.0,0.0002,2]
[374807109,1753450241527,-800.0,0.00020059,2]
[374807113,1753450241540,-371.865951,0.00020187,2]
[374807117,1753450241552,-436.86,0.00020229,2]
[374807120,1753450241562,-420.0,0.00020269,2]
[374807123,1753450241572,-460.0,0.00020273,2]
[374807126,1753450241583,-460.0,0.00020273,2]
[374807130,1753450241594,-740.99,0.00020273,2]
[374807133,1753450241605,-258.29579809,0.00020273,2]
[374807136,1753450241616,-460.0,0.00020273,2]
[374807140,1753450241627,-504.1,0.00020273,2]
[374807143,1753450241638,-828.39,0.00020273,2]
[374807147,1753450241649,-460.0,0.00020273,2]
[374807150,1753450241660,-460.0,0.00020273,2]
[374807153,1753450241672,-868.0,0.00020273,2]
[374807157,1753450241683,-460.0,0.00020273,2]
[374807160,1753450241694,-425.22,0.00020273,2]
[374807163,1753450241705,-771.17,0.00020273,2]
[374807167,1753450241716,-460.0,0.00020273,2]
[374807171,1753450241727,-2610.13,0.00020273,2]
[374807174,1753450241740,-460.0,0.00020273,2]
[374807177,1753450241753,-1862.29,0.00020273,2]
[374807181,1753450241765,-460.0,0.00020273,2]
[374807185,1753450241776,-1081.62,0.00020273,2]
[374807188,1753450241788,-460.0,0.00020273,2]
[374807191,1753450241799,-460.0,0.00020273,2]
[374807195,1753450241810,-1187.83,0.00020273,2]
[374807198,1753450241821,-646.9,0.00020273,2]
[374807201,1753450241831,-1175.37,0.00020273,2]
[374807205,1753450241844,-385.75,0.00020273,2]
[374807209,1753450241858,-958.95,0.00020273,2]
[374807212,1753450241869,-512.38,0.00020273,2]
[374807215,1753450241881,-460.0,0.00020273,2]
[374807218,1753450241891,-460.0,0.00020273,2]
[374807221,1753450241903,-460.0,0.00020273,2]
[374807226,1753450241914,-3295.55,0.00020273,2]
[374807229,1753450241924,-500.0,0.00020323,2]
[374807232,1753450241934,-500.0,0.00020421,2]
[374807235,1753450241944,-500.0,0.00020421,2]
[374807238,1753450241954,-1000.0,0.00020421,2]
[374807241,1753450241965,-1000.0,0.00020421,2]
[374807244,1753450241976,-214.7599002,0.00020466,2]
[374807247,1753450241987,-215.93003454,0.00020466,2]
[374807251,1753450241999,-476.88235691,0.00020466,2]
[374807255,1753450242011,-840.4016166,0.00020466,2]
[374807258,1753450242023,-160.0,0.00020466,2]
[374807261,1753450242036,-266.42,0.00020537,3]
[374807264,1753450242047,-799.28,0.00020537,3]
[374807269,1753450242059,-460.0,0.00020547,2]
[374807272,1753450242070,-460.0,0.00020547,2]
[374807275,1753450242082,-740.99,0.00020547,2]
[374807278,1753450242094,-460.0,0.00020547,2]
[374807283,1753450242105,-504.1,0.00020547,2]
[374807286,1753450242116,-828.39,0.00020547,2]
[374807289,1753450242127,-460.0,0.00020547,2]
[374807291,1753450242139,-345.38030352,0.00020547,2]
[374807294,1753450242151,-868.0,0.00020547,2]
[374807297,1753450242161,-771.17,0.00020547,2]
[374807300,1753450242173,-460.0,0.00020547,2]
[374807303,1753450242183,-2610.13,0.00020547,2]
[374807306,1753450242193,-460.0,0.00020547,2]
[374807309,1753450242203,-1862.29,0.00020547,2]
[374807312,1753450242216,-351.16,0.00020547,2]
[374807315,1753450242228,-1081.62,0.00020547,2]
[374807318,1753450242242,-460.0,0.00020547,2]
[374807322,1753450242255,-460.0,0.00020547,2]
[374807325,1753450242267,-1187.83,0.00020547,2]
[374807329,1753450242279,-646.9,0.00020547,2]
[374807332,1753450242290,-1175.37,0.00020547,2]
[374807336,1753450242300,-958.95,0.00020547,2]
[374807339,1753450242309,-460.0,0.00020547,2]
[374807342,1753450242320,-460.0,0.00020547,2]
[374807345,1753450242329,-3295.55,0.00020547,2]
[374807348,1753450242340,-274.2,0.00020575,3]
[374807351,1753450242350,-157.59748782,0.00020593,2]
[374807354,1753450242361,-460.0,0.00020821,2]
[374807361,1753450242387,-460.0,0.00020821,2]
[374807364,1753450242401,-740.99,0.00020821,2]
[374807369,1753450242412,-460.0,0.00020821,2]
[374807372,1753450242423,-504.1,0.00020821,2]
[374807375,1753450242434,-828.39,0.00020821,2]
[374807378,1753450242445,-460.0,0.00020821,2]
[374807381,1753450242456,-868.0,0.00020821,2]
[374807385,1753450242468,-771.17,0.00020821,2]
[374807389,1753450242480,-2610.13,0.00020821,2]
[374807392,1753450242493,-460.0,0.00020821,2]
[374807395,1753450242505,-460.0,0.00020821,2]
[374807399,1753450242517,-1862.29,0.00020821,2]
[374807403,1753450242528,-1081.62,0.00020821,2]
[374807405,1753450242540,-460.0,0.00020821,2]
[374807407,1753450242552,-1187.83,0.00020821,2]
[374807409,1753450242563,-646.9,0.00020821,2]
[374807412,1753450242574,-1175.37,0.00020821,2]
[374807414,1753450242587,-958.95,0.00020821,2]
[374807416,1753450242598,-460.0,0.00020821,2]
[374807419,1753450242610,-460.0,0.00020821,2]
[374807421,1753450242621,-3295.55,0.00020821,2]
[374807423,1753450242633,-1000.0,0.00020871,2]
[374807425,1753450242644,-160.0,0.00020955,2]
[374807427,1753450242655,-1007.57266618,0.00020968,2]
[374807429,1753450242667,-1000.0,0.00020968,2]
[374807432,1753450242678,-274.2,0.00021076,4]
[374807434,1753450242689,-460.0,0.00021095,2]
[374807436,1753450242700,-460.0,0.00021095,2]
[374807438,1753450242711,-740.99,0.00021095,2]
[374807440,1753450242722,-460.0,0.00021095,2]
[374807443,1753450242733,-504.1,0.00021095,2]
[374807445,1753450242746,-828.39,0.00021095,2]
[374807447,1753450242758,-468.12,0.00021095,2]
[374807449,1753450242770,-868.0,0.00021095,2]
[374807452,1753450242782,-771.17,0.00021095,2]
[374807454,1753450242793,-2610.13,0.00021095,2]
[374807456,1753450242804,-460.0,0.00021095,2]
[374807458,1753450242815,-460.0,0.00021095,2]
[374807460,1753450242826,-1862.29,0.00021095,2]
[374807462,1753450242838,-1081.62,0.00021095,2]
[374807464,1753450242849,-460.0,0.00021095,2]
[374807467,1753450242860,-1187.83,0.00021095,2]
[374807469,1753450242871,-646.9,0.00021095,2]
[374807471,1753450242883,-1175.37,0.00021095,2]
[374807473,1753450242893,-958.95,0.00021095,2]
[374807475,1753450242905,-460.0,0.00021095,2]
[374807478,1753450242915,-460.0,0.00021095,2]
[374807480,1753450242926,-3295.55,0.00021095,2]
[374807482,1753450242936,-800.0,0.00021155,2]
[374807484,1753450242947,-600.54749216,0.00021205,5]
[374807486,1753450242961,-506.13,0.00021232,2]
[374807489,1753450242975,-178.723,0.00021232,2]
[374807491,1753450242986,-460.0,0.00021369,2]
[374807493,1753450242999,-460.0,0.00021369,2]
[374807495,1753450243011,-740.99,0.00021369,2]
[374807498,1753450243021,-460.0,0.00021369,2]
[374807500,1753450243032,-504.1,0.00021369,2]
[374807521,1753450243042,-828.39,0.00021369,2]
[374807525,1753450243209,-868.0,0.00021369,2]
[374807527,1753450243219,-771.17,0.00021369,2]
[374807530,1753450243229,-2610.13,0.00021369,2]
[374807532,1753450243239,-460.0,0.00021369,2]
[374807534,1753450243251,-460.0,0.00021369,2]
[374807536,1753450243262,-1862.29,0.00021369,2]
[374807538,1753450243271,-1081.62,0.00021369,2]
[374807541,1753450243280,-460.0,0.00021369,2]
[374807543,1753450243290,-1187.83,0.00021369,2]
[374807545,1753450243299,-646.9,0.00021369,2]
[374807547,1753450243308,-1175.37,0.00021369,2]
[374807549,1753450243318,-958.95,0.00021369,2]
[374807551,1753450243328,-460.0,0.00021369,2]
[374807553,1753450243337,-460.0,0.00021369,2]
[374807555,1753450243346,-3295.55,0.00021369,2]
[374807557,1753450243356,-1162.27601403,0.00021419,2]
[374807559,1753450243366,-2219.31768029,0.000215,2]
[374807561,1753450243377,-260.0,0.00021503,2]
[374807563,1753450243386,-274.2,0.00021577,4]
[374807566,1753450243397,-476.88235691,0.00021598,3]
[374807568,1753450243406,-160.0,0.00021598,3]
[374807570,1753450243416,-460.0,0.00021643,2]
[374807572,1753450243425,-460.0,0.00021643,2]
[374807574,1753450243435,-740.99,0.00021643,2]
[374807576,1753450243445,-504.1,0.00021643,2]
[374807578,1753450243455,-828.39,0.00021643,2]
[374807580,1753450243464,-868.0,0.00021643,2]
[374807582,1753450243474,-771.17,0.00021643,2]
[374807584,1753450243484,-2610.13,0.00021643,2]
[374807586,1753450243495,-460.0,0.00021643,2]
[374807588,1753450243505,-460.0,0.00021643,2]
[374807590,1753450243514,-1862.29,0.00021643,2]
[374807592,1753450243524,-1081.62,0.00021643,2]
[374807594,1753450243534,-460.0,0.00021643,2]
[374807596,1753450243543,-1187.83,0.00021643,2]
[374807598,1753450243552,-646.9,0.00021643,2]
[374807600,1753450243563,-1175.37,0.00021643,2]
[374807602,1753450243572,-958.95,0.00021643,2]
[374807604,1753450243582,-460.0,0.00021643,2]
[374807606,1753450243591,-460.0,0.00021643,2]
[374807608,1753450243601,-3295.55,0.00021643,2]
[374807610,1753450243610,-500.43649988,0.00021689,2]
[374807612,1753450243620,-500.0,0.00021689,2]
[374807614,1753450243628,-500.0,0.00021689,2]
[374807616,1753450243637,-501.11919719,0.00021689,2]
[374807618,1753450243646,-500.0,0.00021689,2]
[374807620,1753450243655,-500.37542207,0.00021689,2]
[374807622,1753450243664,-151.30489874,0.00021698,2]
[374807624,1753450243672,-3801.642,0.00021698,2]
[374807626,1753450243681,-215.0738,0.00021698,2]
[374807628,1753450243690,-4091.94517612,0.00021753,2]
[374807630,1753450243698,-2667.67817634,0.00021817,2]
[374807632,1753450243706,-532.84,0.00021907,3]
[374807634,1753450243714,-197.47595768,0.00021917,2]
[374807636,1753450243723,-460.0,0.00021917,2]
[374807638,1753450243731,-740.99,0.00021917,2]
[374807640,1753450243739,-504.1,0.00021917,2]
[374807642,1753450243748,-828.39,0.00021917,2]
[374807644,1753450243757,-868.0,0.00021917,2]
[374807646,1753450243766,-771.17,0.00021917,2]
[374807648,1753450243775,-2610.13,0.00021917,2]
[374807650,1753450243783,-460.0,0.00021917,2]
[374807652,1753450243792,-460.0,0.00021917,2]
[374807653,1753450243799,-1862.29,0.00021917,2]
[374807655,1753450243808,-1081.62,0.00021917,2]
[374807657,1753450243818,-460.0,0.00021917,2]
[374807660,1753450243828,-1187.83,0.00021917,2]
[374807661,1753450243837,-646.9,0.00021917,2]
[374807663,1753450243846,-1175.37,0.00021917,2]
[374807665,1753450243856,-958.95,0.00021917,2]
[374807668,1753450243865,-460.0,0.00021917,2]
[374807670,1753450243876,-460.0,0.00021917,2]
[374807672,1753450243886,-3295.55,0.00021917,2]
[374807674,1753450243896,-500.0,0.00021973,2]
[374807676,1753450243906,-500.0,0.00021973,2]
[374807678,1753450243916,-500.0,0.00021973,2]
[374807679,1753450243926,-513.72045867,0.00021973,2]
[374807682,1753450243936,-500.0,0.00021973,2]
[374807683,1753450243945,-2165.37,0.00022,7]
[374807685,1753450243955,-151.0,0.00022,2]
[374807687,1753450243964,-38462.44,0.00022,2]
[374807690,1753450243974,-320.47,0.00022,2]
[374807691,1753450243984,-170.0,0.00022,2]
[374807693,1753450243995,-360.0,0.00022051,2]
[374807695,1753450244004,-873.72,0.00022069,2]
[374807698,1753450244014,-274.2,0.00022078,5]
[374807700,1753450244023,-587.0,0.00022103,2]
[374807702,1753450244032,-280.33080621,0.0002213,2]
[374807704,1753450244042,-274.4842035,0.0002213,2]
[374807706,1753450244052,-500.0,0.00022164,2]
[374807708,1753450244061,-500.0,0.00022164,2]
[374807711,1753450244071,-500.0,0.00022164,2]
[374807712,1753450244080,-500.0,0.00022164,2]
[374807715,1753450244090,-500.0,0.00022183,2]
[374807716,1753450244099,-460.0,0.00022191,2]
[374807718,1753450244108,-740.99,0.00022191,2]
[374807720,1753450244118,-504.1,0.00022191,2]
[374807722,1753450244127,-828.39,0.00022191,2]
[374807725,1753450244137,-868.0,0.00022191,2]
[374807727,1753450244147,-771.17,0.00022191,2]
[374807728,1753450244156,-460.0,0.00022191,2]
[374807730,1753450244166,-2610.13,0.00022191,2]
[374807733,1753450244177,-460.0,0.00022191,2]
[374807734,1753450244186,-1862.29,0.00022191,2]
[374807737,1753450244196,-1081.62,0.00022191,2]
[374807739,1753450244205,-460.0,0.00022191,2]
[374807741,1753450244215,-1187.83,0.00022191,2]
[374807743,1753450244224,-646.9,0.00022191,2]
[374807745,1753450244233,-1175.37,0.00022191,2]
[374807747,1753450244244,-958.95,0.00022191,2]
[374807749,1753450244255,-460.0,0.00022191,2]
[374807751,1753450244265,-460.0,0.00022191,2]
[374807752,1753450244274,-3295.55,0.00022191,2]
[374807754,1753450244284,-800.0,0.00022251,2]
[374807757,1753450244301,-157.59748782,0.00022329,2]
[374807760,1753450244313,-2889.52293754,0.00022342,2]
[374807762,1753450244323,-509.30338973,0.00022465,2]
[374807764,1753450244333,-740.99,0.00022465,2]
[374807766,1753450244343,-504.1,0.00022465,2]
[374807768,1753450244352,-828.39,0.00022465,2]
[374807770,1753450244362,-1448.03,0.00022465,2]
[374807772,1753450244372,-868.0,0.00022465,2]
[374807774,1753450244381,-771.17,0.00022465,2]
[374807776,1753450244392,-258.44214248,0.00022465,2]
[374807778,1753450244403,-2610.13,0.00022465,2]
[374807780,1753450244413,-460.0,0.00022465,2]
[374807783,1753450244423,-1862.29,0.00022465,2]
[374807785,1753450244434,-1081.62,0.00022465,2]
[374807787,1753450244444,-460.0,0.00022465,2]
[374807789,1753450244455,-1187.83,0.00022465,2]
[374807791,1753450244464,-646.9,0.00022465,2]
[374807793,1753450244474,-1175.37,0.00022465,2]
[374807795,1753450244484,-958.95,0.00022465,2]
[374807797,1753450244495,-399.1,0.00022465,2]
[374807799,1753450244505,-460.0,0.00022465,2]
[374807801,1753450244515,-3295.55,0.00022465,2]
[374807803,1753450244524,-204920.82345686,0.0002249,7]
[374807805,1753450244534,-320.47,0.000225,2]
[374807807,1753450244543,-1078.78157681,0.00022521,2]
[374807809,1753450244553,-1000.0,0.00022521,2]
[374807811,1753450244563,-1139.9076075,0.00022521,2]
[374807813,1753450244572,-2667.67817631,0.00022563,2]
[374807815,1753450244581,-274.2,0.00022579,5]
[374807817,1753450244591,-460.0,0.00022599,2]
[374807819,1753450244600,-1098.50610844,0.000226,4]
[374807821,1753450244609,-1000.0,0.00022712,2]
[374807824,1753450244619,-500.0,0.00022712,2]
[374807826,1753450244628,-1000.0,0.00022731,2]
[374807828,1753450244638,-740.99,0.00022739,2]
[374807830,1753450244647,-504.1,0.00022739,2]
[374807832,1753450244656,-828.39,0.00022739,2]
[374807834,1753450244666,-868.0,0.00022739,2]
[374807836,1753450244675,-771.17,0.00022739,2]
[374807838,1753450244685,-2610.13,0.00022739,2]
[374807840,1753450244694,-460.0,0.00022739,2]
[374807842,1753450244704,-1862.29,0.00022739,2]
[374807843,1753450244713,-1081.62,0.00022739,2]
[374807844,1753450244723,-460.0,0.00022739,2]
[374807845,1753450244732,-1187.83,0.00022739,2]
[374807846,1753450244742,-646.9,0.00022739,2]
[374807847,1753450244751,-1175.37,0.00022739,2]
[374807848,1753450244760,-958.95,0.00022739,2]
[374807849,1753450244770,-460.0,0.00022739,2]
[374807850,1753450244779,-3295.55,0.00022739,2]
[374807851,1753450244789,-160.0,0.00022776,3]
[374807852,1753450244798,-2157.0,0.00022794,2]
[374807853,1753450244807,-969.0,0.00022794,2]
[374807854,1753450244816,-407.0,0.00022794,2]
[374807855,1753450244825,-421.487,0.00022794,2]
[374807856,1753450244835,-648.0,0.00022794,2]
[374807857,1753450244844,-11245.51412244,0.000229,2]
[374807858,1753450244854,-24332.29709805,0.000229,7]
[374807859,1753450244863,-312.16666667,0.000229,7]
[374807860,1753450244873,-169.33794127,0.00022959,2]
[374807861,1753450244882,-183.29398073,0.00022959,2]
[374807862,1753450244892,-320.47,0.00022975,2]
[374807863,1753450244899,-336.17,0.00023,2]
[374807865,1753450244907,-160.0,0.00023,3]
[374807866,1753450244916,-160.0,0.00023,2]
[374807869,1753450244925,-740.99,0.00023013,2]
[374807871,1753450244934,-504.1,0.00023013,2]
[374807873,1753450244942,-828.39,0.00023013,2]
[374807875,1753450244950,-868.0,0.00023013,2]
[374807877,1753450244959,-771.17,0.00023013,2]
[374807879,1753450244966,-2610.13,0.00023013,2]
[374807881,1753450244975,-460.0,0.00023013,2]
[374807883,1753450244984,-1862.29,0.00023013,2]
[374807885,1753450244994,-1081.62,0.00023013,2]
[374807887,1753450245002,-460.0,0.00023013,2]
[374807889,1753450245010,-1187.83,0.00023013,2]
[374807891,1753450245018,-646.9,0.00023013,2]
[374807893,1753450245028,-1175.37,0.00023013,2]
[374807895,1753450245038,-958.95,0.00023013,2]
[374807897,1753450245046,-460.0,0.00023013,2]
[374807899,1753450245054,-3295.55,0.00023013,2]
[374807901,1753450245062,-170.0,0.00023014,7]
[374807903,1753450245069,-223.0315306,0.00023067,2]
[374807905,1753450245078,-183.29398073,0.00023068,2]
[374807907,1753450245086,-274.2,0.0002308,5]
[374807909,1753450245095,-560.0,0.00023147,2]
[374807911,1753450245102,-589.77,0.00023152,4]
[374807913,1753450245109,-982.95,0.00023152,6]
[374807915,1753450245117,-183.29398073,0.00023178,2]
[374807917,1753450245125,-169.33794127,0.00023205,2]
[374807919,1753450245133,-589.77,0.00023252,3]
[374807921,1753450245141,-982.95,0.00023252,6]
[374807923,1753450245148,-503.02000038,0.0002326,2]
[374807925,1753450245155,-577.7720337,0.0002326,2]
[374807926,1753450245163,-577.7720337,0.0002326,2]
[374807928,1753450245174,-1500.0,0.00023279,2]
[374807931,1753450245183,-740.99,0.00023287,2]
[374807933,1753450245191,-504.1,0.00023287,2]
[374807935,1753450245199,-828.39,0.00023287,2]
[374807937,1753450245206,-868.0,0.00023287,2]
[374807939,1753450245216,-771.17,0.00023287,2]
[374807941,1753450245225,-2610.13,0.00023287,2]
[374807943,1753450245234,-460.0,0.00023287,2]
[374807945,1753450245246,-1862.29,0.00023287,2]
[374807947,1753450245257,-1081.62,0.00023287,2]
[374807949,1753450245265,-460.0,0.00023287,2]
[374807951,1753450245273,-1187.83,0.00023287,2]
[374807953,1753450245282,-646.9,0.00023287,2]
[374807955,1753450245291,-1175.37,0.00023287,2]
[374807957,1753450245298,-958.95,0.00023287,2]
[374807959,1753450245306,-460.0,0.00023287,2]
[374807961,1753450245314,-3295.55,0.00023287,2]
[374807963,1753450245322,-183.29398073,0.00023288,2]
[374807965,1753450245331,-38462.44,0.000233,2]